Cogmind - Beta 12 @@@ ROGUE MODE // 2023.05.06 @ 05:44:52 Player: Ms. V3-11A Result: Destroyed by G-34 Mercenary with Small Laser Performance ------------- Evolutions (0) 0 Regions Visited (4) 800 Robots Destroyed (30) 150 Value Destroyed (754) 754 Prototype IDs (1) 20 Alien Tech Used (0) 0 Bonus (0) 0 TOTAL SCORE: 1724 Bonus ------- None Cogmind --------- Core Integrity 0/250 Matter 226/300 Energy 125/125 System Corruption 14% Temperature Cool (46) Movement Walking (260) Ox2 Location -9/Mines Parts ------- > --- POWER (1) -------- Light Ion Engine > --- PROPULSION (2) --- Aluminum Leg Aluminum Leg > --- UTILITY (2) ------ High-capacity Storage Unit Reflective Plating > --- WEAPON (2) ------- Heavy Battle Rifle (fused) Assault Cannon > --- INVENTORY (20) --- Light Ion Engine Light Ion Engine Improved Heat Sink High-capacity Storage Unit High-capacity Storage Unit Compact Battery (200) High-capacity Matter Pod (0) Faulty Experimental Sensor Array Weapon Shielding Improved Weapon Shielding System Shield Pulse Rifle EM Pulse Cannon Assault Rifle Light Assault Rifle Peak State ------------ > --- POWER ------------ Light Ion Engine > --- PROPULSION ------- Aluminum Leg Aluminum Leg > --- UTILITY ---------- High-capacity Storage Unit Reflective Plating > --- WEAPON ----------- Heavy Battle Rifle Assault Cannon > --- INVENTORY -------- Light Ion Engine Light Ion Engine Improved Heat Sink High-capacity Storage Unit High-capacity Storage Unit Compact Battery High-capacity Matter Pod Experimental Sensor Array Weapon Shielding Improved Weapon Shielding System Shield Pulse Rifle EM Pulse Cannon Assault Rifle Light Assault Rifle [Rating: 17] Favorites ----------- Power Light Ion Engine Engine Light Ion Engine Propulsion Aluminum Leg Treads Light Treads Leg Aluminum Leg Utility High-capacity Storage Unit Device Improved Heat Sink Storage High-capacity Storage Unit Protection Reflective Plating Weapon EM Pulse Gun Energy Gun EM Pulse Gun Ballistic Gun Light Assault Rifle Ballistic Cannon Assault Cannon Build | -11 -10 -10 -10 -9 ------- Run | Jun Mat Min Exi Min Slots Evolved . | . . . . . Power . | . . . . . Propulsion . | . . . . . Utility . | . . . . . Weapon . | . . . . . Parts Attached 31 | 3 9 12 3 4 Power 2 | . 1 1 . . Engine 2 | . 1 1 . . Core . | . . . . . Reactor . | . . . . . Propulsion 8 | 2 1 4 . 1 Treads 3 | 2 1 . . . Leg 5 | . . 4 . 1 Wheel . | . . . . . Hover . | . . . . . Flight . | . . . . . Utility 9 | . 3 4 1 1 Device 3 | . 1 2 . . Storage 3 | . 2 . 1 . Processor . | . . . . . Hackware . | . . . . . Protection 3 | . . 2 . 1 Artifact . | . . . . . Weapon 12 | 1 4 3 2 2 Energy Gun 6 | 1 3 1 1 . Energy Cannon . | . . . . . Ballistic Gun 5 | . 1 2 1 1 Ballistic Cannon 1 | . . . . 1 Launcher . | . . . . . Special Weapon . | . . . . . Impact Weapon . | . . . . . Slashing Weapon . | . . . . . Piercing Weapon . | . . . . . Special Melee Weapon . | . . . . . Unidentified Prototypes 1 | . . 1 . . Corrupted Parts 4 | . . 3 . 1 System Corruption 12 | . . 10 . 2 Parts Lost 7 | . 2 4 . 1 Power 1 | . . 1 . . Propulsion 2 | . 1 1 . . Utility . | . . . . . Weapon 4 | . 1 2 . 1 Highest Loss Streak 2 | . 1 2 . 1 To Critical Strikes . | . . . . . Average Slot Usage (%) 86 | . 96 88 71 98 Engine 13 | . 14 13 14 14 Treads 10 | . 27 7 . . Leg 16 | . . 17 28 26 Device 4 | . 12 2 . . Storage 14 | . 15 14 14 14 Protection 7 | . . 7 14 14 Energy Gun 10 | . 15 20 . . Ballistic Gun 6 | . 10 4 . 22 Naked Turns . | . . . . . Heaviest Build 56 | 11 50 50 51 56 Greatest Support 40 | 40 40 40 20 20 Greatest Overweight (x) 16 | . 2 16 2 5 Average Overweight (x) 1 | . . 2 2 2 Largest Inventory Capacity 20 | 8 20 20 20 20 Average Capacity 19 | 8 18 20 20 20 Most Carried 20 | 7 14 20 19 16 Average Carried 14 | 5 11 14 17 15 Final Capacity 20 | 8 20 20 20 20 Final Carried 17 | 4 13 17 16 15 Class Distribution -------------------- 100% | Mutant Dominant Class ---------------- Mutant | -10/Materials Mutant | -10/Mines Mutant | -10/Exiles Mutant | -9/Mines Resources | -11 -10 -10 -10 -9 ----------- Run | Jun Mat Min Exi Min Matter Collected 1064 | 146 446 76 . 396 Remotely . | . . . . . Salvage Created 1129 | . 597 266 . 266 Parts 70 | . 38 15 . 17 Haulers Intercepted 1 | . 1 . . . Recyclers Shooed 1 | . 1 . . . Parts Field Recycled . | . . . . . Retrieved Matter . | . . . . . Parts Self-Destructed . | . . . . . Prevented . | . . . . . Kills | -11 -10 -10 -10 -9 ------- Run | Jun Mat Min Exi Min Combat Hostiles Destroyed 24 | . 10 7 . 7 Guns 20 | . 9 5 . 6 Cannons 1 | . . . . 1 AOE 2 | . . 2 . . Classes Destroyed 8 | . 7 . . 1 Worker 1 | . 1 . . . Tunneler 1 | . 1 . . . Hauler 1 | . 1 . . . Recycler 1 | . 1 . . . Operator 3 | . 3 . . . Swarmer 6 | . 3 3 . . Grunt 17 | . 7 4 . 6 Assembled 1 | . . . . 1 Best Kill Streak 5 | . 5 3 . 3 Combat Bots Only 3 | . 3 3 . 3 Max Kills in Single Turn 2 | . 1 2 . 2 Gunslinging . | . . . . . Exploded 2 | . . 2 . . Melee . | . . . . . Uniques/NPCs Destroyed . | . . . . . Combat | -11 -10 -10 -10 -9 -------- Run | Jun Mat Min Exi Min Damage Taken 1168 | . 652 325 . 191 Core 258 | . 118 79 . 61 Absorbed by Shields . | . . . . . Redirected to Shielding 2 | . . 2 . . Core Remaining (%) 100 | 100 . . . . Volleys Fired 103 | . 54 13 . 36 Largest 2 | . 2 2 . 2 Hottest 80 | . 80 80 . 77 Shots Fired 175 | . 97 26 . 52 Gun 170 | . 97 26 . 47 Cannon 5 | . . . . 5 Launcher . | . . . . . Special . | . . . . . Kinetic 93 | . 43 . . 50 Thermal 25 | . 25 . . . Explosive . | . . . . . Electromagnetic 57 | . 29 26 . 2 Robot Hit Streak 10 | . 10 8 . 4 Robot Miss Streak 3 | . 3 3 . 3 Penetration Max . | . . . . . Secondary Targets 4 | . 3 1 . . Max Gunslinging Chain 1 | . 1 1 . . Shots Hit Robots 95 | . 64 18 . 13 Core Hits 49 | . 27 13 . 9 Critical Kills . | . . . . . Critical Parts Destroyed . | . . . . . Critical Strikes 7 | . 7 . . . Burn 4 | . 4 . . . Corrupt 3 | . 3 . . . Melee Attacks . | . . . . . Impact . | . . . . . Slashing . | . . . . . Piercing . | . . . . . Sneak Attacks . | . . . . . Combat Hostiles . | . . . . . Follow-up Attacks . | . . . . . Damage Inflicted 1513 | . 878 357 . 278 Guns 1265 | . 815 260 . 190 Cannons 88 | . . . . 88 Explosions 150 | . 59 91 . . Melee . | . . . . . Ramming 10 | . 4 6 . . Kinetic 483 | . 235 . . 248 Thermal 400 | . 309 91 . . Explosive . | . . . . . Electromagnetic 620 | . 330 260 . 30 Impact . | . . . . . Slashing . | . . . . . Piercing . | . . . . . Highest Corruption 14 | . 1 12 12 14 Average Corruption 8 | . 1 4 12 12 Corruption Purged . | . . . . . Corruption Blocked . | . . . . . Effects 100 | . . 26 54 20 Message Errors 25 | . . 7 16 2 Matter Fused 26 | . . 8 14 4 Heat Flow Errors 14 | . . 5 7 2 Energy Discharges 11 | . . 1 6 4 Parts Rejected 2 | . . . . 2 Parts Fused 2 | . . 1 . 1 Data Loss (minor) 12 | . . 2 8 2 Data Loss (major) 6 | . . 2 3 1 Alerts 1 | . . . . 1 Weapon Failures 1 | . . . . 1 Overload Shots . | . . . . . Overflow Damage 20 | . 20 . . . Projectiles . | . . . . . Explosions 20 | . 20 . . . Melee . | . . . . . Knockbacks 1 | . . . . 1 Impact . | . . . . . Kinetic 1 | . . . . 1 Secondary . | . . . . . Self-Inflicted Damage 30 | . . 30 . . Shots 1 | . . 1 . . Rammed 2 | . 1 1 . . Targets Rammed 3 | . 1 2 . . Kicked 1 | . . 1 . . Crushed . | . . . . . Highest Temperature 456 | . 385 456 267 229 Average Temperature 118 | . 186 98 105 64 Received Heat Transfer 632 | . 339 153 . 140 Effects 11 | . 7 3 1 . Shutdowns 3 | . 2 1 . . Energy Bleed 2 | . 1 . 1 . Interference 4 | . 3 1 . . Matter Decay 1 | . 1 . . . Damage (minor) 1 | . . 1 . . Siege Activations . | . . . . . Robots Corrupted . | . . . . . Combat Hostiles . | . . . . . Parts Fried 3 | . 2 1 . . Impact Corruptions . | . . . . . Robots Melted 1 | . 1 . . . Combat Hostiles 1 | . 1 . . . Parts Melted . | . . . . . Heat Transferred 1286 | . 1136 150 . . Parts Sabotaged . | . . . . . Parts Stolen . | . . . . . Parts Stripped . | . . . . . Power Chain Reactions 3 | . 2 1 . . Missiles Intercepted . | . . . . . Alert | -11 -10 -10 -10 -9 ------- Run | Jun Mat Min Exi Min Peak Influence 172 | . 172 170 . 117 Initial 24 | . . 24 . . Average 49 | . 73 19 . 69 Maximum Alert Level . | . . . . . Low Security (%) 100 | 100 100 100 . 100 Level 1 . | . . . . . Level 2 . | . . . . . Level 3 . | . . . . . Level 4 . | . . . . . Level 5 . | . . . . . High Security . | . . . . . Max Security . | . . . . . Squads Dispatched 3 | . 2 . . 1 Investigation . | . . . . . Extermination . | . . . . . Reinforcement 3 | . 2 . . 1 Assault . | . . . . . Garrison . | . . . . . Intercept . | . . . . . Searches Triggered . | . . . . . Construction Impeded 1 | . . . . 1 Haulers Reinforced . | . . . . . Active Scanning Responses . | . . . . . Cargo Convoy Interrupts . | . . . . . Stealth | -11 -10 -10 -10 -9 --------- Run | Jun Mat Min Exi Min Distress Signals 3 | . 3 . . . Communications Jammed . | . . . . . Distress Signals . | . . . . . Times Spotted 36 | . 19 7 . 10 Peak Tracking Total 4 | . 4 3 . 4 Tactical Retreats 1 | . . . . 1 Traps | -11 -10 -10 -10 -9 ------- Run | Jun Mat Min Exi Min Traps Triggered 1 | . . 1 . . Indirectly . | . . . . . Trap Hack Attempts . | . . . . . Triggered . | . . . . . Disarmed . | . . . . . Reprogrammed . | . . . . . Reused . | . . . . . Traps Extracted . | . . . . . Installed . | . . . . . Triggered . | . . . . . Machines | -11 -10 -10 -10 -9 ---------- Run | Jun Mat Min Exi Min Machines Disabled . | . . . . . Max in Single Turn . | . . . . . Machines Repaired . | . . . . . Machines Sabotaged . | . . . . . Overloaded Fab Kills . | . . . . . Hacking | -11 -10 -10 -10 -9 --------- Run | Jun Mat Min Exi Min Machines Accessed 8 | . 3 1 4 . Terminals 3 | . 3 . . . Fabricators . | . . . . . Repair Stations . | . . . . . Recycling Units . | . . . . . Scanalyzers . | . . . . . Garrison Access . | . . . . . Total Hacks 39 | . 11 1 27 . Successful 34 | . 6 1 27 . Failed 5 | . 5 . . . Catastrophic 1 | . 1 . . . Database Lockouts . | . . . . . Manual 4 | . 4 . . . Terminals 11 | . 11 . . . Fabricators . | . . . . . Repair Stations . | . . . . . Recycling Units . | . . . . . Scanalyzers . | . . . . . Garrison Access . | . . . . . Terminal Hacks 33 | . 5 1 27 . Record 27 | . . . 27 . Open Door 1 | . . 1 . . Branch Access Points 1 | . 1 . . . Alert Level 1 | . 1 . . . Dispatch Records 1 | . 1 . . . Zone Layout 2 | . 2 . . . Fabricator Hacks . | . . . . . Repair Station Hacks . | . . . . . Recycling Unit Hacks . | . . . . . Scanalyzer . | . . . . . Garrison Access Hacks . | . . . . . Unauthorized Hacks 1 | . 1 . . . Terminals 1 | . 1 . . . Botnet 1 | . 1 . . . Fabricators . | . . . . . Repair Stations . | . . . . . Recycling Units . | . . . . . Scanalyzers . | . . . . . Garrison Access . | . . . . . Data Cores Recovered 1 | . 1 . . . Used . | . . . . . Hacking Detections 3 | . 3 . . . Full Trace Events 1 | . 1 . . . Feedback Events 1 | . 1 . . . Corruption 1 | . 1 . . . Feedback Blocked . | . . . . . Robot Schematics Acquired . | . . . . . Robots Built . | . . . . . Authchips . | . . . . . Time . | . . . . . Total Robot Build Rating . | . . . . . Part Schematics Acquired . | . . . . . Parts Built . | . . . . . Authchips . | . . . . . Time . | . . . . . Total Part Build Rating . | . . . . . Parts Repaired . | . . . . . Time . | . . . . . Parts Recycled . | . . . . . Recycled Matter . | . . . . . Retrieved Matter . | . . . . . Retrieved Components . | . . . . . Parts Scanalyzed . | . . . . . Part Schematics Acquired . | . . . . . Parts Damaged . | . . . . . Bothacking | -11 -10 -10 -10 -9 ------------ Run | Jun Mat Min Exi Min Used RIF Installer . | . . . . . Robots Hacked . | . . . . . Non-combat . | . . . . . Combat . | . . . . . Robot Hacks Applied . | . . . . . Relay Couplers Released . | . . . . . Fabnet Peak Effective % . | . . . . . Robots Rewired . | . . . . . Allies Hacked . | . . . . . Hacks Repelled . | . . . . . Allies | -11 -10 -10 -10 -9 -------- Run | Jun Mat Min Exi Min Total Allies . | . . . . . Largest Group . | . . . . . Highest-Rated Group . | . . . . . Highest-Rated Ally . | . . . . . Total Orders . | . . . . . Ally Attacks . | . . . . . Total Damage . | . . . . . Kills . | . . . . . Allies Corrupted . | . . . . . Allies Melted . | . . . . . Intel | -11 -10 -10 -10 -9 ------- Run | Jun Mat Min Exi Min Robot Analysis Total . | . . . . . Derelict Logs Recovered 1 | . . 1 . . Drone Launches . | . . . . . Drone Recoveries . | . . . . . Exploration | -11 -10 -10 -10 -9 ------------- Run | Jun Mat Min Exi Min Turns Passed 5023 | 6 1558 1460 1527 472 Spaces Moved 1772 | 1 596 479 585 111 Core 18 | . . 18 . . Treads 729 | 1 596 132 . . Legs 1025 | . . 329 585 111 Wheels . | . . . . . Hover . | . . . . . Flight . | . . . . . Fastest Speed 160 | 160 160 240 260 260 Average Speed 254 | 160 227 276 260 277 Slowest Speed 850 | 160 320 850 260 470 Overloaded Moves . | . . . . . Propulsion Burnouts . | . . . . . Robots Hopped . | . . . . . Cave-ins Triggered . | . . . . . Exploration Rate (%) 56 | 2 83 86 91 21 Regions Visited 4 Branch Regions 3 Pre-discovered Areas 1 | . . . 1 . Known Exits Taken 1 | . 1 . . . Unknown Exits Taken 3 | 1 . 1 1 . Scrap Searched 1 | . . 1 . . Spaces Dug . | . . . . . Terrain Destroyed 13 | . 5 6 . 2 Melee . | . . . . . Projectile 2 | . . . . 2 AOE 11 | . 5 6 . . Terrain Rammed . | . . . . . Walls Destroyed . | . . . . . Machines Disabled . | . . . . . Actions | -11 -10 -10 -10 -9 --------- Run | Jun Mat Min Exi Min Total 2118 | 7 710 585 594 222 Wait 165 | . 31 65 . 69 Move 1768 | . 595 478 584 111 Hop . | . . . . . Pick Up 25 | . 14 8 2 1 Fast Attach 8 | . 1 5 . 2 Attach 15 | 2 4 6 2 1 Detach 8 | 2 1 4 1 . Swap 8 | 1 4 1 1 1 Drop 15 | 2 5 3 4 1 Fire 103 | . 54 13 . 36 Melee . | . . . . . Ram . | . . . . . Kick 1 | . . 1 . . Crush 2 | . 1 1 . . Escape Stasis . | . . . . . Rewire . | . . . . . Trap . | . . . . . Miscellaneous . | . . . . . Route ------- -11/Junkyard -10/Materials (discovered 4 exits: [*Mat x2] / *Min x2) -10/Mines (discovered 3 exits: [*Mat x2] / *Exi) -10/Exiles -9/Mines History --------- Turn | Location | Event 7 | -11/Junkyard | Discovered new exit (range 0) 7 | -11/Junkyard | Entered Materials 34 | -10/Materials | Identified exit to Mines 316 | -10/Materials | Build established: Mutant 1089 | -10/Materials | Discovered new exit (range 15) 1373 | -10/Materials | Discovered new exit (range 16) 1565 | -10/Materials | Entered Mines 1568 | -10/Mines | Core integrity fell below 50% 1660 | -10/Mines | Found a damaged Exp. Sensor Array with a note attached 1666 | -10/Mines | Found Prototype Device 1666 | -10/Mines | Identified Exp. Sensor Array 1715 | -10/Mines | Discovered new exit (range 6) 1799 | -10/Mines | Learned 4 Materials zone layouts 1811 | -10/Mines | A weapon hastily lodged in a ceiling crevice suddenly fell to the ground 2141 | -10/Mines | Discovered new exit (range 5) 2430 | -10/Mines | Met a Derelict who couldn't figure out how to use a Trap Extractor 2639 | -10/Mines | System corruption reached 10% 3012 | -10/Mines | Deemed a non-threat by the Exiles lab entrance 3012 | -10/Mines | Discovered new exit (range 5) 3025 | -10/Mines | Entered Exiles 3094 | -10/Exiles | Met 8R-AWN 3138 | -10/Exiles | Met EX-HEX 3299 | -10/Exiles | Met EX-DEC 3349 | -10/Exiles | Learned location of Zion (-6) 3427 | -10/Exiles | Met EX-BIN 4049 | -10/Exiles | Visited The Gauntlet 4513 | -10/Exiles | Discovered new exit (range 12) 4552 | -10/Exiles | Entered Mines 4557 | -9/Mines | Core integrity fell below 20% 4638 | -9/Mines | Excavation squad dispatched 4638 | -9/Mines | A large section of the Mines collapsed 4888 | -9/Mines | Excavation squad dispatched 5024 | -9/Mines | Destroyed by G-34 Mercenary with Small Laser Last Messages --------------- 04962_ T-07 Excavator is excavating. 04962_ U-05 Engineer lays Concrete. 04964_ K-01 Serf collects debris. 04965_ Acquired 34 matter. 04968_ K-01 Serf collects debris. 04974_ Acquired Aluminum Leg. 04975_ K-01 Serf collects debris. 04979_ System corrupted: Heat flow error (+246). 04979_ U-05 Engineer lays Concrete. 04982_ K-01 Serf collects debris. 04983_ T-07 Excavator is excavating. 04985_ K-01 Serf collects debris. 04986_ U-05 Engineer lays Concrete. 04989_ K-01 Serf collects debris. 04996_ U-05 Engineer lays Concrete. 04999_ K-01 Serf collects debris. 05016_ System corrupted: Reflective Plating rejected. 05017_ Acquired Reflective Plating. 05019_ G-34 Mercenary knocked back. 05022_ G-34 Mercenary destroyed. Map ----- +----------------------------------------------------+ | ?????????????????????????????????????????????????? | | ?????????????????????????????????????????????????? | | ?????????????????????????????????????????????????? | | ?????????????????????????????????????????????????? | | ?????????????????????????????????????????????????? | | ?????????????????????????????????????????????????? | | ?????????????????????????????????????????????????? | | ?????????????????????????????????????????????????? | | ?????????????????????????????????????????????????? | | ?????????????????????????????????????????????????? | | ?????????????????????????????????????????????????? | | ?????????????????????????????????????????????????? | | ?????????????????????????????????????????????????? | | ?????????????????????????????????????????????????? | | ?????????????????????????????????####????????????? | | ????????????????????????????????## ######?####??? | | ???????????????????????????????## ### ##?? | | ??????????????????????????????##= #?? | | ?????????????????????????######%= #?? | | ?????????????????????????# ##?? | | ?????????????????????????# #### ### ##??? | | ??????????????????????????????# ##?## ##???? | | ??????????????????????????????## =##??####????? | | ???????????????????????????????### #??????????? | | ???????????????????#g######??????## #??????????? | | ???????????????????# ggg@#??????##" "#??????????? | | ?????????????# #???######!#??????#" ##?????????? | | ?????????????# #???????#=#?######## ##????????? | | ?????????????# ???????#t### #### ##???????? | | ?????????????# #?????## ## [ % ##??????? | | ?????????????# #????## t " * "#??????? | | ?????????????# ##??## !!% % " #??????? | | ?????????????# #??# %=% " % ##??????? | | ?????????????# ???# | "#???????? | | ?????????????? ???# ## " " "#???????? | | ??????????????? #???## ### " ### " #???????? | | ???????????????# #????# #?# ##?## ##???????? | | ???????????##### ##???# #?## ###???#####????????? | | ???????????# ##### #??####??????????????????? | | ???????????# #????????????????????????? | | ???????????# != #????????????????????????? | | ???????# ### [ #######????????????????????????? | | ???????# [= #??????????????????????????????? | | ???????##### * *#??????????????????????????????? | | ???????????#T######??????????????????????????????? | | ???????????##????????????????????????????????????? | | ?????????????????????????????????????????????????? | | ?????????????????????????????????????????????????? | | | | | +----------------------------------------------------+ Best States ------------- Heat Dissipation 39 Energy Generation 10 Energy Capacity 250 Matter Stores 300 Matter Capacity 300 Sight Range 16 Terrain Scan Density 10 Armor Coverage 150 Resistance: TH 10 Weapon Shielding 33 Evasion (%) 40 Recoil Reduction 2 Trap Extractor Capacity 6 Item Schematics ----------------- None Robot Schematics ------------------ None Fabricated ------------ Nothing Alien Tech Used ----------------- None Achievements -------------- None Challenges ------------ None Game ------ Seed BarrageAntimatterMallet Manual? 0 Play Time 00:31:01 Cumulative 81.7 hours Start 2023.05.06 @ 04:23:28 End 2023.05.06 @ 05:44:52 Sessions 1 Manual Loads 0 Difficulty Rogue Special Mode None Game No. 74 Rogue 29 Adventurer 19 Explorer 26 Win Type - Total 0 Types 0/0/0/0/0/0/0/0/0 Lore% 28 Gallery% 47 Achievement% 66 Wizard Run 0 Options --------- ASCII 0 Keyboard 0 Movement Mouse Keybinds 0 Fullscreen 0 Font 16/Smallcaps Map View 76x50 Tactical HUD 1 Map Filters NONE Filters BRIGHTNESS(125)|SATURATION(75)|LOW_CONTRAST(13,24,33)|SHIFT_HUE(130) Steam 1 RUN: b74565f4-75b6-410b-86af-d40e04f8f329